[Event "NOR-ch Various 2019"]
[Site "Larvik"]
[Date "2019.07.06"]
[Round "1.27"]
[White "Fuglestein, Sander"]
[Black "Fossum, Sindre"]
[Result "1-0"]
[ECO "A90"]
[WhiteElo "1997"]
[BlackElo "1646"]
[Annotator "NA"]
[PlyCount "91"]
[EventDate "2019.07.06"]
[EventType "swiss"]
[EventCountry "NOR"]
[SourceTitle "playchess.com"]
[Source "ChessBase"]
[SourceQuality "1"]
[TimeControl "40/5400+30:1800+30"]

1. d4 {[%emt 0:00:00]} f5 {[%emt 0:00:00]} 2. c4 {[%emt 0:00:00]} Nf6 {[%emt 0:00:00]} 3. g3 {[%emt 0:00:00]} e6 {[%emt 0:00:33]} 4. Bg2 {[%emt 0:00:20]} d5 {[%emt 0:01:01]} 5. Nf3 {[%emt 0:00:28]} c6 {[%emt 0:01:06]} 6. O-O {[%emt 0:00:32]} Bd6 {[%emt 0:01:30]} 7. b3 {[%emt 0:02:21]} Qe7 {[%emt 0:00:58]} 8. Bb2 {[%emt 0:00:45]} O-O {[%emt 0:02:55]} 9. Qc1 {[%emt 0:00:55]} Bd7 {[%emt 0:13:59]} 10. Ba3 {[%emt 0:01:28]} Bxa3 {[%emt 0:08:34]} 11. Qxa3 {[%emt 0:01:14]} Qxa3 {[%emt 0:01:36]} 12. Nxa3 {[%emt 0:00:02]} Be8 {[%emt 0:09:25]} 13. Ne5 {[%emt 0:03:54]} Nbd7 {[%emt 0:04:45]} 14. Nd3 {[%emt 0:09:23]} Bf7 {[%emt 0:11:21]} 15. Nc2 {[%emt 0:14:15]} Rfc8 {[%emt 0:09:25]} 16. Rfc1 {[%emt 0:08:36]} Rc7 {[%emt 0:05:52]} 17. a4 {[%emt 0:05:08]} Rac8 {[%emt 0:06:06]} 18. c5 {[%emt 0:10:13]} Ra8 {[%emt 0:03:32]} 19. b4 {[%emt 0:02:09]} a6 {[%emt 0:02:23]} 20. b5 {[%emt 0:08:07]} Rcc8 {[%emt 0:02:07]} 21. bxc6 {[%emt 0:06:19]} bxc6 {[%emt 0:00:57]} 22. a5 {[%emt 0:00:52]} Be8 {[%emt 0:02:00]} 23. Rab1 {[%emt 0:01:25]} Rcb8 {[%emt 0:00:42]} 24. Rxb8 {[%emt 0:01:26]} Nxb8 {[%emt 0:01:26]} 25. Rb1 {[%emt 0:04:02]} Nfd7 {[%emt 0:02:37]} 26. Rb7 {[%emt 0:01:32]} Kf8 {[%emt 0:00:09]} 27. Ncb4 {[%emt 0:01:31]} Ke7 {[%emt 0:02:12]} 28. Ne5 {[%emt 0:08:29]} Kf6 {[%emt 0:00:57]} 29. f4 {[%emt 0:02:40]} Nxe5 {[%emt 0:01:11]} 30. fxe5+ {[%emt 0:00:55]} Kg6 {[%emt 0:00:03]} 31. e3 {[%emt 0:00:34]} Bd7 {[%emt 0:01:07]} 32. Bf1 {[%emt 0:00:27]} Bc8 {[%emt 0:01:52]} 33. Rb6 {[%emt 0:00:39]} Kh6 {[%emt 0:00:15]} 34. Nxc6 {[%emt 0:01:14]} Nd7 {[%emt 0:00:02]} 35. Rb1 {[%emt 0:03:35]} g5 {[%emt 0:02:11]} 36. Ne7 {[%emt 0:00:19]} g4 {[%emt 0:01:31]} 37. Nxc8 {[%emt 0:00:11]} Rxc8 {[%emt 0:00:02]} 38. Bxa6 {[%emt 0:00:39]} Ra8 {[%emt 0:00:02]} 39. c6 {[%emt 0:01:29]} Rxa6 {[%emt 0:01:29]} 40. cxd7 {[%emt 0:00:17]} Ra8 {[%emt 0:00:16]} 41. Rc1 {[%emt 0:30:39]} Rd8 {[%emt 0:30:30]} 42. Rc7 {[%emt 0:00:42]} Kg7 {[%emt 0:00:08]} 43. a6 {[%emt 0:00:54]} Kf7 {[%emt 0:00:09]} 44. a7 {[%emt 0:00:10]} Ke7 {[%emt 0:00:13]} 45. Rc8 {[%emt 0:00:07]} Kxd7 {[%emt 0:02:00]} 46. Rxd8+ {[%emt 0:00:28]} 1-0

[Event "NOR-ch Various 2019"]
[Site "Larvik"]
[Date "2019.07.06"]
[Round "1.28"]
[White "Machlik, Edit"]
[Black "Andersen, Lars Even"]
[Result "0-1"]
[ECO "D32"]
[WhiteElo "2075"]
[BlackElo "2314"]
[Annotator "NA"]
[PlyCount "52"]
[EventDate "2019.07.06"]
[EventType "swiss"]
[EventCountry "NOR"]
[SourceTitle "playchess.com"]
[Source "ChessBase"]
[SourceQuality "1"]
[TimeControl "40/5400+30:1800+30"]

1. d4 {[%emt 0:00:00]} d5 {[%emt 0:00:00]} 2. c4 {[%emt 0:00:00]} e6 {[%emt 0:00:17]} 3. Nc3 {[%emt 0:00:53]} c5 {[%emt 0:05:41]} 4. cxd5 {[%emt 0:09:20]} exd5 {[%emt 0:15:29]} 5. dxc5 {[%emt 0:12:30]} d4 {[%emt 0:03:26]} 6. Na4 {[%emt 0:04:00]} Bxc5 {[%emt 0:33:41]} 7. Nxc5 {[%emt 0:03:09]} Qa5+ {[%emt 0:00:06]} 8. Bd2 {[%emt 0:05:40]} Qxc5 {[%emt 0:00:07]} 9. Rc1 {[%emt 0:01:45]} Qf5 {[%emt 0:00:13]} 10. g3 {[%emt 0:15:17]} Nc6 {[%emt 0:05:39]} 11. Bg2 {[%emt 0:02:48]} Nge7 {[%emt 0:01:38]} 12. Nf3 {[%emt 0:02:42]} Qh5 {[%emt 0:09:58]} 13. b4 {[%emt 0:10:02]} Bh3 {[%emt 0:11:08]} 14. Rc5 {[%emt 0:02:49]} Nf5 {[%emt 0:01:15]} 15. O-O {[%emt 0:08:33]} Bxg2 {[%emt 0:01:55]} 16. Kxg2 {[%emt 0:00:12]} Rd8 {[%emt 0:03:52]} 17. Bg5 {[%emt 0:04:19]} f6 {[%emt 0:00:49]} 18. Rxf5 {[%emt 0:00:44]} fxg5 {[%emt 0:00:44]} 19. Rxg5 {[%emt 0:02:39]} Qf7 {[%emt 0:00:15]} 20. b5 {[%emt 0:02:38]} Ne7 {[%emt 0:00:55]} 21. Re5 {[%emt 0:04:59]} O-O {[%emt 0:00:56]} 22. Ng5 {[%emt 0:03:31]} Qf6 {[%emt 0:00:56]} 23. Qb3+ {[%emt 0:00:16]} Kh8 {[%emt 0:00:16]} 24. h4 {[%emt 0:02:13]} Qxe5 {[%emt 0:00:34]} 25. Nf7+ {[%emt 0:00:25]} Rxf7 {[%emt 0:00:25]} 26. Qxf7 {[%emt 0:00:02]} Qd5+ {[%emt 0:00:32]} 0-1

[Event "NOR-ch Various 2019"]
[Site "Larvik"]
[Date "2019.07.06"]
[Round "1.29"]
[White "Hobber, Anders"]
[Black "Eliseev, Sergey"]
[Result "1-0"]
[ECO "D00"]
[WhiteElo "2294"]
[BlackElo "2053"]
[Annotator "NA"]
[PlyCount "43"]
[EventDate "2019.07.06"]
[EventType "swiss"]
[EventCountry "NOR"]
[SourceTitle "playchess.com"]
[Source "ChessBase"]
[SourceQuality "1"]
[TimeControl "40/5400+30:1800+30"]

1. d4 {[%emt 0:00:00]} Nf6 {[%emt 0:00:00]} 2. Nf3 {[%emt 0:00:00]} g6 {[%emt 0:00:00]} 3. Nc3 {[%emt 0:00:00]} d5 {[%emt 0:06:00]} 4. Bf4 {[%emt 0:00:09]} Bg7 {[%emt 0:03:06]} 5. Nb5 {[%emt 0:00:38]} Na6 {[%emt 0:01:51]} 6. e3 {[%emt 0:00:08]} c6 {[%emt 0:03:49]} 7. Nc3 {[%emt 0:00:06]} Qa5 {[%emt 0:10:46]} 8. Nd2 {[%emt 0:13:14]} Nd7 {[%emt 0:39:37]} 9. Nb3 {[%emt 0:04:51]} Qb6 {[%emt 0:01:05]} 10. Be2 {[%emt 0:05:05]} e5 {[%emt 0:04:02]} 11. Bg3 {[%emt 0:01:10]} Nc7 {[%emt 0:04:59]} 12. O-O {[%emt 0:05:26]} Ne6 {[%emt 0:02:28]} 13. e4 {[%emt 0:08:02]} Nxd4 {[%emt 0:14:49]} 14. exd5 {[%emt 0:04:19]} f5 {[%emt 0:00:51]} 15. Nxd4 {[%emt 0:10:32]} exd4 {[%emt 0:00:55]} 16. dxc6 {[%emt 0:16:38]} bxc6 {[%emt 0:00:42]} 17. Bc4 {[%emt 0:02:11]} dxc3 {[%emt 0:02:24]} 18. Qd6 {[%emt 0:02:32]} Bf6 {[%emt 0:01:04]} 19. Rad1 {[%emt 0:02:15]} Bg5 {[%emt 0:00:26]} 20. Rfe1+ {[%emt 0:14:21]} Kd8 {[%emt 0:00:16]} 21. Qe5 {[%emt 0:00:29]} Rf8 {[%emt 0:00:41]} 22. Bf7 {[%emt 0:01:33]} 1-0

[Event "NOR-ch Various 2019"]
[Site "Larvik"]
[Date "2019.07.06"]
[Round "1.30"]
[White "Grover, Sigurd Loe"]
[Black "Hole, Oystein"]
[Result "1-0"]
[ECO "D42"]
[WhiteElo "2052"]
[BlackElo "2293"]
[Annotator "NA"]
[PlyCount "74"]
[EventDate "2019.07.06"]
[EventType "swiss"]
[EventCountry "NOR"]
[SourceTitle "playchess.com"]
[Source "ChessBase"]
[SourceQuality "1"]
[TimeControl "40/5400+30:1800+30"]

1. c4 {[%emt 0:00:00]} c6 {[%emt 0:00:00]} 2. e4 {[%emt 0:00:00]} d5 {[%emt 0:00:00]} 3. exd5 {[%emt 0:00:00]} cxd5 {[%emt 0:00:00]} 4. cxd5 {[%emt 0:00:17]} Nf6 {[%emt 0:00:00]} 5. Nc3 {[%emt 0:00:06]} Nxd5 {[%emt 0:00:03]} 6. Nf3 {[%emt 0:00:08]} e6 {[%emt 0:00:28]} 7. d4 {[%emt 0:00:14]} Be7 {[%emt 0:01:33]} 8. Bd3 {[%emt 0:00:13]} O-O {[%emt 0:00:37]} 9. O-O {[%emt 0:00:06]} Nc6 {[%emt 0:11:02]} 10. Re1 {[%emt 0:00:23]} Nf6 {[%emt 0:01:33]} 11. a3 {[%emt 0:23:22]} b6 {[%emt 0:03:35]} 12. Bc2 {[%emt 0:01:00]} Bb7 {[%emt 0:07:53]} 13. Qd3 {[%emt 0:01:17]} Rc8 {[%emt 0:01:23]} 14. Bg5 {[%emt 0:01:09]} g6 {[%emt 0:00:11]} 15. Rad1 {[%emt 0:07:54]} Nd5 {[%emt 0:07:26]} 16. Bh6 {[%emt 0:03:15]} Re8 {[%emt 0:01:17]} 17. Bb3 {[%emt 0:17:01]} Na5 {[%emt 0:15:48]} 18. Ba4 {[%emt 0:04:35]} Nxc3 {[%emt 0:07:20]} 19. bxc3 {[%emt 0:00:42]} Bc6 {[%emt 0:12:10]} 20. Bxc6 {[%emt 0:00:58]} Rxc6 {[%emt 0:00:17]} 21. Ne5 {[%emt 0:01:22]} Rd6 {[%emt 0:00:32]} 22. Qf3 {[%emt 0:03:51]} f6 {[%emt 0:04:21]} 23. Nd3 {[%emt 0:03:42]} Qc8 {[%emt 0:08:01]} 24. Nf4 {[%emt 0:03:09]} Nc4 {[%emt 0:06:27]} 25. Nh5 {[%emt 0:12:34]} Kf7 {[%emt 0:02:21]} 26. Ng3 {[%emt 0:03:12]} Rd5 {[%emt 0:02:12]} 27. h4 {[%emt 0:01:47]} Bxa3 {[%emt 0:01:22]} 28. Ne4 {[%emt 0:02:04]} Rf5 {[%emt 0:02:10]} 29. Qe2 {[%emt 0:02:50]} Be7 {[%emt 0:00:11]} 30. Rd3 {[%emt 0:03:27]} Rh5 {[%emt 0:02:44]} 31. Bc1 {[%emt 0:01:39]} Rxh4 {[%emt 0:00:20]} 32. d5 {[%emt 0:02:00]} exd5 {[%emt 0:01:28]} 33. Rxd5 {[%emt 0:00:13]} f5 {[%emt 0:00:49]} 34. Qf3 {[%emt 0:01:40]} Kg7 {[%emt 0:00:08]} 35. Ng3 {[%emt 0:00:45]} Bf6 {[%emt 0:00:13]} 36. Red1 {[%emt 0:00:25]} Ne5 {[%emt 0:00:23]} 37. Qe2 {[%emt 0:00:23]} Kg8 {[%emt 0:00:00]} 1-0

[Event "NOR-ch Various 2019"]
[Site "Larvik"]
[Date "2019.07.06"]
[Round "1.31"]
[White "Lund, Gunnar"]
[Black "Lobersli, Henrik Oie"]
[Result "1-0"]
[ECO "D00"]
[WhiteElo "2285"]
[BlackElo "2046"]
[Annotator "RC"]
[PlyCount "157"]
[EventDate "2019.07.06"]
[EventType "swiss"]
[EventCountry "NOR"]
[SourceTitle "playchess.com"]
[Source "ChessBase"]
[SourceQuality "1"]
[TimeControl "40/5400+30:1800+30"]

1. d4 {[%emt 0:00:00]} Nf6 {[%emt 0:00:00]} 2. Bf4 {[%emt 0:00:00]} d5 {[%emt 0:00:10]} 3. e3 {[%emt 0:00:00]} c5 {[%emt 0:00:29]} 4. c3 {[%emt 0:00:09]} Nc6 {[%emt 0:00:29]} 5. Nd2 {[%emt 0:00:52]} cxd4 {[%emt 0:02:10]} 6. exd4 {[%emt 0:00:27]} Bf5 {[%emt 0:00:28]} 7. Qb3 {[%emt 0:00:08]} Qc8 {[%emt 0:01:59]} 8. Ngf3 {[%emt 0:00:06]} e6 {[%emt 0:00:38]} 9. Nh4 {[%emt 0:00:08]} Bg4 {[%emt 0:04:46]} 10. f3 {[%emt 0:06:49]} Bh5 {[%emt 0:01:07]} 11. g4 {[%emt 0:00:27]} Bg6 {[%emt 0:00:13]} 12. Nxg6 {[%emt 0:00:19]} hxg6 {[%emt 0:00:12]} 13. Bd3 {[%emt 0:01:57]} Qd7 {[%emt 0:04:23]} 14. O-O-O {[%emt 0:05:44]} O-O-O {[%emt 0:06:50]} 15. h4 {[%emt 0:13:15]} Bd6 {[%emt 0:02:10]} 16. Bg5 {[%emt 0:00:39]} Qc7 {[%emt 0:05:40]} 17. Kb1 {[%emt 0:04:48]} Kb8 {[%emt 0:03:36]} 18. Qc2 {[%emt 0:02:12]} Bf4 {[%emt 0:12:18]} 19. Nb3 {[%emt 0:01:40]} Bxg5 {[%emt 0:01:36]} 20. hxg5 {[%emt 0:00:06]} Nd7 {[%emt 0:00:37]} 21. Bb5 {[%emt 0:02:30]} a6 {[%emt 0:05:49]} 22. Bxc6 {[%emt 0:01:43]} Qxc6 {[%emt 0:00:07]} 23. Rh2 {[%emt 0:00:36]} Qd6 {[%emt 0:11:26]} 24. Rdh1 {[%emt 0:00:52]} Rxh2 {[%emt 0:01:05]} 25. Qxh2 {[%emt 0:00:08]} Qxh2 {[%emt 0:03:58]} 26. Rxh2 {[%emt 0:00:07]} Kc7 {[%emt 0:00:26]} 27. Rh7 {[%emt 0:00:15]} Rg8 {[%emt 0:00:22]} 28. Nd2 {[%emt 0:01:53]} Kd6 {[%emt 0:02:14]} 29. f4 {[%emt 0:01:15]} Nf8 {[%emt 0:08:21]} 30. Rh2 {[%emt 0:01:11]} Nd7 {[%emt 0:00:06]} 31. Nf3 {[%emt 0:00:17]} b6 {[%emt 0:04:02]} 32. Kc2 {[%emt 0:01:41]} Kc6 {[%emt 0:01:26]} 33. Kd3 {[%emt 0:00:59]} Kd6 {[%emt 0:01:14]} 34. b3 {[%emt 0:00:30]} b5 {[%emt 0:01:02]} 35. Rh1 {[%emt 0:02:42]} Rb8 {[%emt 0:02:41]} 36. Rh7 {[%emt 0:01:47]} Rg8 {[%emt 0:00:07]} 37. Rh1 {[%emt 0:03:16]} Rb8 {[%emt 0:01:05]} 38. Nd2 {[%emt 0:00:50]} Nb6 {[%emt 0:01:27]} 39. Nf1 {[%emt 0:01:50]} Nd7 {[%emt 0:02:51]} 40. Ne3 {[%emt 0:02:01]} Rg8 {[%emt 0:05:26]} 41. c4 {[%emt 0:34:43]} bxc4+ {[%emt 0:34:03]} 42. bxc4 {[%emt 0:00:24]} dxc4+ {[%emt 0:00:32]} 43. Nxc4+ {[%emt 0:00:08]} Kd5 {[%emt 0:01:05]} 44. Rc1 {[%emt 0:06:35]} Rh8 {[%emt 0:00:00]} 45. Rc3 {[%emt 0:00:00]} Rh3+ {[%emt 0:00:00]} 46. Ne3+ {[%emt 0:00:00]} Kd6 {[%emt 0:00:00]} 47. Ra3 {[%emt 0:00:00]} Nb6 {[%emt 0:00:00]} 48. Rxa6 {[%emt 0:00:00]} Kc7 {[%emt 0:00:00]} 49. Ke2 {[%emt 0:00:00]} Rh2+ {[%emt 0:00:00]} 50. Kf3 {[%emt 0:00:00]} Kb7 {[%emt 0:00:00]} 51. Ra3 {[%emt 0:00:00]} Rd2 {[%emt 0:00:00]} 52. Ke4 {[%emt 0:00:00]} Re2 {[%emt 0:00:00]} 53. Rb3 {[%emt 0:00:00]} Kc6 {[%emt 0:02:42]} 54. Rc3+ {[%emt 0:00:00]} Kd6 {[%emt 0:01:26]} 55. Rc2 {[%emt 0:00:00]} Re1 {[%emt 0:00:43]} 56. Kf3 {[%emt 0:00:00]} Ra1 {[%emt 0:00:53]} 57. Rb2 {[%emt 0:00:00]} Kc6 {[%emt 0:01:01]} 58. f5 {[%emt 0:00:00]} gxf5 {[%emt 0:00:37]} 59. gxf5 {[%emt 0:00:00]} exf5 {[%emt 0:00:45]} 60. Nxf5 {[%emt 0:00:00]} Nc4 {[%emt 0:00:28]} 61. Rf2 {[%emt 0:02:45]} Kd5 {[%emt 0:00:35]} 62. Nxg7 {[%emt 0:00:51]} Kxd4 {[%emt 0:00:01]} 63. Kf4 {[%emt 0:00:31]} Kd5 {[%emt 0:00:49]} 64. Nf5 {[%emt 0:01:48]} Rg1 {[%emt 0:00:32]} 65. Nh6 {[%emt 0:04:17]} Ke6 {[%emt 0:00:32]} 66. Re2+ {[%emt 0:01:03]} Kd7 {[%emt 0:00:01]} 67. Ng4 {[%emt 0:00:45]} Nd6 {[%emt 0:00:59]} 68. Nf6+ {[%emt 0:00:47]} Kd8 {[%emt 0:00:34]} 69. Ke5 {[%emt 0:01:12]} Nc4+ {[%emt 0:00:01]} 70. Kd4 {[%emt 0:00:10]} Nd6 {[%emt 0:00:34]} 71. Kd5 {[%emt 0:00:50]} Nf5 {[%emt 0:00:35]} 72. Ke5 {[%emt 0:02:05]} Ng7 {[%emt 0:00:39]} 73. Rd2+ {[%emt 0:02:03]} Kc8 {[%emt 0:00:25]} 74. Ne4 {[%emt 0:01:17]} Ne6 {[%emt 0:00:29]} 75. Kf6 {[%emt 0:00:37]} Re1 {[%emt 0:00:43]} 76. Nd6+ {[%emt 0:00:22]} Kc7 {[%emt 0:00:18]} 77. Nxf7 {[%emt 0:00:39]} Nc5 {[%emt 0:00:35]} 78. Rc2 {[%emt 0:00:17]} Re2 {[%emt 0:00:46]} 79. Rc3 1-0

[Event "NOR-ch Various 2019"]
[Site "Larvik"]
[Date "2019.07.06"]
[Round "1.32"]
[White "Sidali, Elias Hulleberg"]
[Black "Abdrlauf, Elham"]
[Result "0-1"]
[ECO "B06"]
[WhiteElo "2041"]
[BlackElo "2235"]
[Annotator "NA"]
[PlyCount "82"]
[EventDate "2019.07.06"]
[EventType "swiss"]
[EventCountry "NOR"]
[SourceTitle "playchess.com"]
[Source "ChessBase"]
[SourceQuality "1"]
[TimeControl "40/5400+30:1800+30"]

1. e4 {[%emt 0:00:00]} d6 {[%emt 0:01:56]} 2. d4 {[%emt 0:01:03]} Nf6 {[%emt 0:00:10]} 3. Nc3 {[%emt 0:00:01]} g6 {[%emt 0:00:32]} 4. f3 {[%emt 0:00:26]} Bg7 {[%emt 0:00:44]} 5. Be3 {[%emt 0:00:02]} a6 {[%emt 0:16:16]} 6. a4 {[%emt 0:02:03]} b6 {[%emt 0:01:11]} 7. Bc4 {[%emt 0:01:23]} Nbd7 {[%emt 0:04:23]} 8. Nh3 {[%emt 0:00:54]} e6 {[%emt 0:09:00]} 9. Qd2 {[%emt 0:07:41]} Bb7 {[%emt 0:03:04]} 10. Nf4 {[%emt 0:01:40]} O-O {[%emt 0:05:25]} 11. O-O {[%emt 0:06:40]} c5 {[%emt 0:11:36]} 12. dxc5 {[%emt 0:05:16]} Ne5 {[%emt 0:00:28]} 13. Be2 {[%emt 0:04:47]} dxc5 {[%emt 0:01:00]} 14. Qxd8 {[%emt 0:00:12]} Rfxd8 {[%emt 0:00:17]} 15. a5 {[%emt 0:00:05]} bxa5 {[%emt 0:04:46]} 16. Rxa5 {[%emt 0:00:55]} Nfd7 {[%emt 0:00:23]} 17. Rfa1 {[%emt 0:02:00]} Nc6 {[%emt 0:00:21]} 18. R5a4 {[%emt 0:07:08]} Nb4 {[%emt 0:10:14]} 19. Bd3 {[%emt 0:02:04]} Rac8 {[%emt 0:04:37]} 20. Rc1 {[%emt 0:09:31]} Nb6 {[%emt 0:05:27]} 21. Ra5 {[%emt 0:02:40]} Nxd3 {[%emt 0:01:01]} 22. cxd3 {[%emt 0:00:01]} g5 {[%emt 0:00:41]} 23. Nh5 {[%emt 0:02:27]} Rxd3 {[%emt 0:00:14]} 24. Bxg5 {[%emt 0:00:54]} Nc4 {[%emt 0:01:57]} 25. Ra2 {[%emt 0:00:24]} Bd4+ {[%emt 0:00:18]} 26. Kf1 {[%emt 0:00:40]} Bc6 {[%emt 0:01:20]} 27. Ke2 {[%emt 0:00:04]} Nxb2 {[%emt 0:00:01]} 28. Rxb2 {[%emt 0:00:12]} Rxc3 {[%emt 0:00:12]} 29. Rxc3 {[%emt 0:03:17]} Bxc3 {[%emt 0:00:03]} 30. Rc2 {[%emt 0:01:16]} Bb5+ {[%emt 0:00:02]} 31. Kf2 {[%emt 0:00:36]} Bb4 {[%emt 0:04:53]} 32. Be7 {[%emt 0:00:16]} f5 {[%emt 0:01:36]} 33. Ke3 {[%emt 0:02:32]} a5 {[%emt 0:00:49]} 34. e5 {[%emt 0:00:37]} c4 {[%emt 0:00:40]} 35. Bxb4 {[%emt 0:01:47]} axb4 {[%emt 0:00:04]} 36. g4 {[%emt 0:00:05]} b3 {[%emt 0:00:39]} 37. Rg2 {[%emt 0:00:03]} f4+ {[%emt 0:00:37]} 38. Kxf4 {[%emt 0:01:27]} c3 {[%emt 0:00:08]} 39. Nf6+ {[%emt 0:00:04]} Kh8 {[%emt 0:00:15]} 40. g5 {[%emt 0:01:01]} c2 {[%emt 0:00:11]} 41. g6 {[%emt 0:30:31]} c1=Q+ {[%emt 0:30:09] g7#} 0-1

[Event "NOR-ch Various 2019"]
[Site "Larvik"]
[Date "2019.07.06"]
[Round "1.33"]
[White "Moen, Ole Christian"]
[Black "Larsen, Tor Kristian"]
[Result "1-0"]
[ECO "B31"]
[WhiteElo "2234"]
[BlackElo "2038"]
[Annotator "NA"]
[PlyCount "65"]
[EventDate "2019.07.06"]
[EventType "swiss"]
[EventCountry "NOR"]
[SourceTitle "playchess.com"]
[Source "ChessBase"]
[SourceQuality "1"]
[TimeControl "40/5400+30:1800+30"]

1. e4 {[%emt 0:00:00]} c5 {[%emt 0:00:00]} 2. Nf3 {[%emt 0:00:00]} Nc6 {[%emt 0:00:00]} 3. Bb5 {[%emt 0:00:00]} g6 {[%emt 0:00:30]} 4. O-O {[%emt 0:00:03]} Bg7 {[%emt 0:00:37]} 5. Re1 {[%emt 0:00:08]} Nd4 {[%emt 0:02:32]} 6. Nxd4 {[%emt 0:03:41]} cxd4 {[%emt 0:00:08]} 7. c3 {[%emt 0:00:18]} Qb6 {[%emt 0:05:50]} 8. Na3 {[%emt 0:01:41]} Nf6 {[%emt 0:09:00]} 9. e5 {[%emt 0:04:43]} Nd5 {[%emt 0:02:19]} 10. Qb3 {[%emt 0:00:10]} Nc7 {[%emt 0:01:09]} 11. Bf1 {[%emt 0:00:44]} Qxb3 {[%emt 0:11:49]} 12. axb3 {[%emt 0:00:14]} dxc3 {[%emt 0:01:40]} 13. bxc3 {[%emt 0:00:08]} O-O {[%emt 0:00:19]} 14. Nc4 {[%emt 0:02:23]} f6 {[%emt 0:05:35]} 15. d4 {[%emt 0:05:34]} fxe5 {[%emt 0:09:39]} 16. Nxe5 {[%emt 0:04:22]} d6 {[%emt 0:02:01]} 17. Bc4+ {[%emt 0:00:16]} e6 {[%emt 0:01:11]} 18. Nf3 {[%emt 0:00:35]} b5 {[%emt 0:01:41]} 19. Bd3 {[%emt 0:01:44]} Bb7 {[%emt 0:10:11]} 20. Ba3 {[%emt 0:02:14]} Rad8 {[%emt 0:04:59]} 21. Ng5 {[%emt 0:04:34]} e5 {[%emt 0:04:31]} 22. Ne4 {[%emt 0:01:55]} Bxe4 {[%emt 0:08:42]} 23. Rxe4 {[%emt 0:05:06]} exd4 {[%emt 0:00:52]} 24. cxd4 {[%emt 0:00:35]} Rfe8 {[%emt 0:03:47]} 25. Rxe8+ {[%emt 0:01:40]} Rxe8 {[%emt 0:01:25]} 26. Bxd6 {[%emt 0:00:32]} Bxd4 {[%emt 0:00:15]} 27. Rd1 {[%emt 0:00:12]} Bb6 {[%emt 0:02:10]} 28. Bg3 {[%emt 0:13:21]} a6 {[%emt 0:05:47]} 29. h4 {[%emt 0:00:53]} Ne6 {[%emt 0:02:07]} 30. Re1 {[%emt 0:01:19]} Bd4 {[%emt 0:01:48]} 31. Be4 {[%emt 0:01:33]} Kg7 {[%emt 0:00:46]} 32. Bc6 {[%emt 0:00:17]} Nc7 {[%emt 0:02:09]} 33. Bxe8 {[%emt 0:00:35]} 1-0

[Event "NOR-ch Various 2019"]
[Site "Larvik"]
[Date "2019.07.06"]
[Round "1.34"]
[White "Sorgjerd, Jan"]
[Black "Aulin-Jansson, Joran"]
[Result "1/2-1/2"]
[ECO "A32"]
[WhiteElo "2033"]
[BlackElo "2223"]
[Annotator "NA"]
[PlyCount "83"]
[EventDate "2019.07.06"]
[EventType "swiss"]
[EventCountry "NOR"]
[SourceTitle "playchess.com"]
[Source "ChessBase"]
[SourceQuality "1"]
[TimeControl "40/5400+30:1800+30"]

1. d4 {[%emt 0:00:00]} Nf6 {[%emt 0:00:00]} 2. c4 {[%emt 0:00:00]} e6 {[%emt 0:00:14]} 3. Nf3 {[%emt 0:00:28]} c5 {[%emt 0:01:01]} 4. Nc3 {[%emt 0:05:31]} cxd4 {[%emt 0:00:25]} 5. Nxd4 {[%emt 0:00:09]} Nc6 {[%emt 0:00:44]} 6. e3 {[%emt 0:03:00]} Bb4 {[%emt 0:01:23]} 7. Bd2 {[%emt 0:05:12]} O-O {[%emt 0:03:19]} 8. a3 {[%emt 0:03:56]} Bxc3 {[%emt 0:01:28]} 9. Bxc3 {[%emt 0:00:08]} Ne4 {[%emt 0:00:06]} 10. Qc2 {[%emt 0:00:37]} Nxc3 {[%emt 0:00:07]} 11. Qxc3 {[%emt 0:00:07]} b6 {[%emt 0:07:56]} 12. Nxc6 {[%emt 0:01:07]} dxc6 {[%emt 0:00:09]} 13. Be2 {[%emt 0:00:04]} Bb7 {[%emt 0:02:00]} 14. Bf3 {[%emt 0:05:56]} Qf6 {[%emt 0:06:56]} 15. Qxf6 {[%emt 0:12:11]} gxf6 {[%emt 0:00:07]} 16. O-O-O {[%emt 0:01:10]} Rfd8 {[%emt 0:00:10]} 17. b4 {[%emt 0:05:06]} Kf8 {[%emt 0:05:40]} 18. Kc2 {[%emt 0:08:37]} Ke7 {[%emt 0:03:13]} 19. Kc3 {[%emt 0:05:42]} a5 {[%emt 0:10:05]} 20. Rxd8 {[%emt 0:00:36]} axb4+ {[%emt 0:00:23]} 21. axb4 {[%emt 0:00:13]} Kxd8 {[%emt 0:00:08]} 22. Rd1+ {[%emt 0:04:49]} Kc7 {[%emt 0:02:14]} 23. Kb3 {[%emt 0:01:25]} e5 {[%emt 0:00:36]} 24. g3 {[%emt 0:14:54]} Bc8 {[%emt 0:00:20]} 25. b5 {[%emt 0:03:28]} Bb7 {[%emt 0:00:42]} 26. Bxc6 {[%emt 0:08:05]} Bxc6 {[%emt 0:00:35]} 27. bxc6 {[%emt 0:00:04]} Kxc6 {[%emt 0:00:11]} 28. h4 {[%emt 0:01:07]} Kc7 {[%emt 0:04:43]} 29. Rd2 {[%emt 0:02:02]} f5 {[%emt 0:05:16]} 30. Kb4 {[%emt 0:01:20]} Ra1 {[%emt 0:06:33]} 31. f4 {[%emt 0:03:11]} Rb1+ {[%emt 0:00:25]} 32. Kc3 {[%emt 0:00:35]} Re1 {[%emt 0:00:46]} 33. fxe5 {[%emt 0:01:24]} Rxe3+ {[%emt 0:00:12]} 34. Kd4 {[%emt 0:01:05]} Rxg3 {[%emt 0:01:35]} 35. Rf2 {[%emt 0:00:26]} Rg4+ {[%emt 0:01:32]} 36. Kd5 {[%emt 0:00:38]} f4 {[%emt 0:00:08]} 37. h5 {[%emt 0:00:39]} h6 {[%emt 0:03:32]} 38. Ra2 {[%emt 0:01:17]} Kb7 {[%emt 0:08:25]} 39. Rb2 {[%emt 0:00:41]} Kc7 {[%emt 0:10:44]} 40. Ra2 {[%emt 0:00:33]} Kb7 {[%emt 0:12:45]} 41. Rb2 {[%emt 0:31:48]} Kc7 {[%emt 0:05:33]} 42. Ra2 {[%emt 0:00:00]} 1/2-1/2

[Event "NOR-ch Various 2019"]
[Site "Larvik"]
[Date "2019.07.06"]
[Round "1.35"]
[White "Demac, Elias"]
[Black "Myrheim, Hakon Abeland"]
[Result "1-0"]
[ECO "A57"]
[WhiteElo "2215"]
[BlackElo "2032"]
[Annotator "NA"]
[PlyCount "53"]
[EventDate "2019.07.06"]
[EventType "swiss"]
[EventCountry "NOR"]
[SourceTitle "playchess.com"]
[Source "ChessBase"]
[SourceQuality "1"]
[TimeControl "40/5400+30:1800+30"]

1. d4 {[%emt 0:00:00]} Nf6 {[%emt 0:00:00]} 2. c4 {[%emt 0:00:00]} c5 {[%emt 0:00:00]} 3. d5 {[%emt 0:00:00]} b5 {[%emt 0:00:07]} 4. cxb5 {[%emt 0:00:25]} a6 {[%emt 0:00:08]} 5. f3 {[%emt 0:00:05]} e6 {[%emt 0:04:29]} 6. e4 {[%emt 0:00:57]} exd5 {[%emt 0:00:05]} 7. e5 {[%emt 0:00:04]} Qe7 {[%emt 0:00:04]} 8. Qe2 {[%emt 0:00:26]} Ng8 {[%emt 0:00:07]} 9. Nc3 {[%emt 0:00:17]} Bb7 {[%emt 0:03:22]} 10. Nh3 {[%emt 0:00:46]} c4 {[%emt 0:11:30]} 11. Nf4 {[%emt 0:00:56]} Qc5 {[%emt 0:00:22]} 12. Nfxd5 {[%emt 0:04:55]} Bxd5 {[%emt 0:04:49]} 13. Be3 {[%emt 0:00:05]} Qb4 {[%emt 0:00:35]} 14. a3 {[%emt 0:00:06]} Qa5 {[%emt 0:00:43]} 15. Bd2 {[%emt 0:00:05]} Be6 {[%emt 0:05:11]} 16. Nd5 {[%emt 0:00:25]} Qd8 {[%emt 0:00:10]} 17. Qxc4 {[%emt 0:00:19]} Bxd5 {[%emt 0:04:11]} 18. Qxd5 {[%emt 0:00:13]} Ra7 {[%emt 0:00:05]} 19. Bc4 {[%emt 0:07:53]} d6 {[%emt 0:00:44]} 20. Be3 {[%emt 0:10:43]} Rd7 {[%emt 0:34:12]} 21. bxa6 {[%emt 0:03:42]} dxe5 {[%emt 0:12:28]} 22. a7 {[%emt 0:08:52]} Rxd5 {[%emt 0:06:11]} 23. Bxd5 {[%emt 0:00:15]} Qa5+ {[%emt 0:04:00]} 24. Kf2 {[%emt 0:00:49]} Bc5 {[%emt 0:05:26]} 25. axb8=Q+ {[%emt 0:00:28]} Kd7 {[%emt 0:00:10]} 26. Qb7+ {[%emt 0:00:49]} Kd8 {[%emt 0:00:15]} 27. Rhd1 {[%emt 0:00:45]} 1-0